lending/lending_fUSD_20251018
["ID","MTS","AMOUNT","RATE_DAILY","PERIOD"]
[391753335,1760778640136,-150.0,0.00032236,2]
[391753336,1760778640146,-500.0,0.00032236,2]
[391753337,1760778640155,-150.0,0.00032236,2]
[391753338,1760778640165,-150.0,0.00032236,2]
[391753339,1760778640173,-150.0,0.00032236,2]
[391753340,1760778640183,-500.0,0.00032236,2]
[391753341,1760778640192,-150.0,0.00032236,2]
[391753342,1760778640202,-150.0,0.00032236,2]
[391753343,1760778640211,-4302.91820065,0.00032262,2]
[391753344,1760778640220,-227.6271353,0.00032273,2]
[391753347,1760778640395,-2511.86057432,0.00032282,4]
[391753348,1760778640408,-449.44070554,0.00032282,4]
[391753349,1760778640418,-76.14801794,0.0003229,15]
[391753350,1760778640430,-90.28786803,0.0003229,15]
[391753351,1760778640440,-5000.0,0.0003229,2]
[391753352,1760778640450,-150.0,0.00032291,2]
[391753353,1760778640459,-200.0,0.00032291,2]
[391753354,1760778640468,-202.12798793,0.00032291,2]
[391753355,1760778640478,-150.0,0.00032291,2]
[391753356,1760778640487,-500.0,0.00032291,2]
[391753357,1760778640497,-202.81903344,0.00032291,2]
[391753358,1760778640506,-150.0,0.00032291,2]
[391753359,1760778640516,-202.21321272,0.00032291,2]
[391753360,1760778640525,-546.139,0.00032291,2]
[391753361,1760778640535,-150.0,0.00032291,2]
[391753362,1760778640544,-150.0,0.00032291,2]
[391753363,1760778640554,-500.0,0.00032291,2]
[391753364,1760778640564,-150.0,0.00032291,2]
[391753365,1760778640573,-150.0,0.00032291,2]
[391753366,1760778640584,-160.53722172,0.000323,4]
[391753367,1760778640593,-301.08384876,0.000323,2]
[391753368,1760778640603,-227.62713528,0.000323,2]
[391753369,1760778640612,-4166.96061364,0.00032303,2]
[391753371,1760778642759,-135.95758701,0.00032303,2]
[391753372,1760778642769,-166.43588594,0.00032319,15]
[391753373,1760778642778,-301.08384876,0.00032328,2]
[391753374,1760778642788,-227.62713528,0.00032328,2]
[391753375,1760778642797,-3859.79782586,0.00032329,2]
[391753376,1760778642807,-160.53722172,0.00032341,4]
[391753377,1760778642817,-4302.91820065,0.00032343,2]
[391753378,1760778642831,-202.87028618,0.00032345,2]
[391753379,1760778642840,-176.43867561,0.00032345,2]
[391753380,1760778642850,-257.38089704,0.00032345,2]
[391753381,1760778642859,-500.0,0.00032345,2]
[391753382,1760778642870,-150.0,0.00032345,2]
[391753383,1760778642879,-150.0,0.00032345,2]
[391753384,1760778642888,-3859.79782586,0.00032348,2]
[391753385,1760778642899,-166.43588594,0.00032348,15]
[391753386,1760778642909,-301.08384876,0.00032355,2]
[391753387,1760778642918,-227.62713528,0.00032355,2]
[391753388,1760778642928,-1273.9,0.00032366,2]
[391753389,1760778642937,-471.6,0.00032366,2]
[391753390,1760778642947,-3859.79782586,0.00032368,2]
[391753391,1760778642957,-500.0,0.00032373,5]
[391753392,1760778642966,-500.0,0.00032373,5]
[391753393,1760778642976,-500.0,0.00032373,5]
[391753394,1760778642985,-500.0,0.00032373,5]
[391753395,1760778642994,-502.84819085,0.00032373,5]
[391753396,1760778643004,-500.0,0.00032373,5]
[391753397,1760778643013,-166.43588594,0.00032378,15]
[391753398,1760778643023,-76250.9642704,0.0003238,2]
[391753399,1760778643032,-160.53722172,0.00032383,4]
[391753400,1760778643041,-301.08384876,0.00032383,2]
[391753401,1760778643050,-227.62713528,0.00032383,2]
[391753402,1760778643060,-4302.91820065,0.00032384,2]
[391753403,1760778643070,-3859.79782586,0.00032387,2]
[391753404,1760778643079,-4236.16468169,0.00032389,2]
[391753405,1760778643088,-550.5500001,0.0003239,2]
[391753406,1760778643098,-200.0,0.0003239,2]
[391753407,1760778643107,-3054.2249829,0.0003239,2]
[391753408,1760778643117,-13663.6589493,0.0003239,2]
[391753409,1760778643127,-200.0,0.0003239,2]
[391753410,1760778643136,-151.0,0.0003239,2]
[391753411,1760778643145,-118612.611087,0.0003239,2]
[391753412,1760778643155,-239.25463558,0.0003239,2]
[391753413,1760778643164,-150.14,0.0003239,2]
[391753414,1760778643174,-150.14,0.0003239,2]
[391753415,1760778643184,-150.14,0.0003239,2]
[391753416,1760778643193,-150.14,0.0003239,2]
[391753417,1760778643203,-150.14,0.0003239,2]
[391753418,1760778643211,-150.14,0.0003239,2]
[391753419,1760778643221,-150.14,0.0003239,2]
[391753420,1760778643230,-150.14,0.0003239,2]
[391753421,1760778643239,-213.49251752,0.0003239,2]
[391753422,1760778643248,-666.0,0.00032399,10]
[391753423,1760778643258,-529.17204663,0.00032399,10]
[391753424,1760778643267,-300.0,0.00032399,10]
[391753425,1760778643276,-300.0,0.00032399,10]
[391753427,1760778643286,-300.0,0.00032399,10]
[391753429,1760778643295,-669.264046,0.00032399,10]
[391753431,1760778643306,-300.0,0.00032399,10]
[391753432,1760778643315,-3546.47,0.00032399,2]
[391753433,1760778643325,-156.656,0.00032399,2]
[391753434,1760778643334,-500.0,0.00032399,2]
[391753435,1760778643344,-184.75724137,0.00032399,2]
[391753436,1760778643354,-175.28019812,0.00032399,2]
[391753437,1760778643364,-999.0,0.00032399,120]
[391753438,1760778643374,-151.0,0.00032399,30]
[391753439,1760778643383,-151.0,0.00032399,30]
[391753440,1760778643393,-151.0,0.00032399,30]
[391753441,1760778643403,-151.0,0.00032399,30]
[391753442,1760778643412,-151.0,0.00032399,30]
[391753443,1760778643422,-151.0,0.00032399,30]
[391753444,1760778643432,-151.0,0.00032399,30]
[391753445,1760778643441,-151.0,0.00032399,30]
[391753446,1760778643451,-151.0,0.00032399,30]
[391753447,1760778643460,-151.0,0.00032399,30]
[391753448,1760778643470,-151.0,0.00032399,30]
[391753449,1760778643479,-151.0,0.00032399,30]
[391753450,1760778643489,-2451.0,0.000324,5]
[391753451,1760778643499,-154012.18907589,0.000324,2]
[391753452,1760778643509,-272.59,0.000324,2]
[391753453,1760778643519,-111005.37574378,0.000324,4]
[391753454,1760778643531,-448.88,0.000324,4]
[391753455,1760778643543,-112676.73439309,0.000324,4]
[391753456,1760778643554,-503.41602185,0.000324,4]
[391753457,1760778643564,-16268.7998,0.000324,4]
[391753460,1760778645812,-1252.40142738,0.000324,4]
[391753461,1760778646076,-7384.3940291,0.000324,4]
[391753462,1760778646186,-3362.66800001,0.000324,4]
[391753475,1760778660469,200.03621307,0.00032615,30]
[391753484,1760778759200,-213.98510695,0.000218,2]
[391753485,1760778759233,-213.98510695,0.00022,2]
[391753486,1760778759264,-213.98510695,0.000222,2]
[391753487,1760778759296,-213.98510695,0.000224,2]
[391753488,1760778759326,-213.98510695,0.000226,2]
[391753523,1760779508041,2860.1489305,0.00015,2]
[391753524,1760779519932,10454.82921974,9e-05,2]
[391753525,1760779526043,650.93649108,0.000108,2]
[391753527,1760779536805,5360.14035359,9e-05,2]
[391753528,1760779566328,4701.57670581,0.00011,2]
[391753564,1760779722630,-378.52750765,0.00014014,2]
[391753567,1760779725128,-157.27053559,0.00014014,2]
[391753569,1760779727364,-216.58383141,0.00014014,2]
[391753589,1760779752541,-17.35812535,0.00014014,2]
[391753590,1760779752563,-139.18743867,0.00014383,2]
[391753595,1760779783289,-200.95598267,0.00014311,2]
[391753596,1760779785333,-273.97974045,0.00014311,2]
[391753621,1760779831895,-108.81541388,0.00014311,2]
[391753624,1760779831904,-113.19443598,0.00014383,2]
[391753625,1760779831914,-769.74,0.00014752,2]
[391753626,1760779831923,-170.72035146,0.000149,2]
[391753627,1760779831933,-150.54192438,0.000149,2]
[391753628,1760779831942,-472.69613869,0.00014999,2]
[391753629,1760779831951,-235.01634238,0.00014999,2]
[391753630,1760779831961,-1200.0,0.00014999,2]
[391753631,1760779831970,-150.0,0.00014999,2]
[391753633,1760779831979,-666.0,0.00014999,2]
[391753634,1760779831988,-188128.65081758,0.00015,2]
[391753635,1760779832000,-1305.0,0.00015,2]
[391753636,1760779832011,-3797.35457578,0.00015,2]
[391753637,1760779832022,-1697.27425521,0.00015,2]
[391753638,1760779832034,-11397.19258559,0.00015,2]
[391753639,1760779832046,-1459.89999975,0.00015,2]
[391753640,1760779832064,-1050.75309839,0.00015,2]
[391753641,1760779832075,-274.73006917,0.00015,2]
[391753642,1760779832175,-7649.2028957,0.00015,2]
[391753643,1760779832191,-26533.77181798,0.00015,2]
[391753644,1760779832202,-24926.16220193,0.00015,2]
[391753645,1760779832213,-703.8483,0.00015,2]
[391753646,1760779832237,-8747.43609123,0.00015,2]
[391753647,1760779832252,-874.67,0.00015,2]
[391753676,1760779837914,-16574.8515288,0.00015,2]
[391753678,1760779837925,-5161.25006226,0.00015,2]
[391753679,1760779837994,-2242.6,0.00015,2]
[391753680,1760779838006,-361.23810502,0.00015,2]
[391753681,1760779838025,-430.76648973,0.00015,2]
[391753682,1760779838037,-40000.0,0.00015,2]
[391753706,1760779839921,-532.63478358,0.00015,2]
[391753713,1760779839977,-4072.36108811,0.00015,2]
[391753715,1760779839988,-3321.47916256,0.00015,2]
[391753716,1760779839999,-498.19424838,0.00015,2]
[391753717,1760779840040,-9850.0,0.00015,2]
[391753718,1760779840202,-3035.21709879,0.00015,2]
[391753719,1760779840215,-1983.98654715,0.00015,2]
[391753720,1760779840227,-377.6273999,0.00015,2]
[391753721,1760779840239,-858.47467712,0.00015,2]
[391753722,1760779840250,-600.0,0.00015,2]
[391753723,1760779840300,-455.54,0.00015,2]
[391753777,1760779843012,-66657.64910273,0.00015,2]
[391753778,1760779843023,-25186.3396482,0.00015,2]
[391753779,1760779843119,-11234.99806,0.00015,2]
[391753780,1760779843228,-2720.5976055,0.00014999,2]
[391753781,1760779843241,-664787.84313948,0.00015,2]
[391753782,1760779843255,-832.32598002,0.00015,2]
[391753785,1760779845971,-169.67713969,0.000149,2]
[391753786,1760779845981,-22282.32286031,0.00015,2]
[391753787,1760779845993,-2810.01,0.00015,2]
[391753788,1760779846006,-382.54356,0.00015,2]
[391753789,1760779846017,-10635.22462092,0.00015,2]
[391753790,1760779846034,-12003.392439,0.00015,2]
[391753791,1760779846045,-5199.56370411,0.00015,2]
[391753792,1760779846081,-266.875,0.00015,2]
[391753793,1760779846137,-1754.19040315,0.00015,2]
[391753794,1760779846148,-5556.5,0.00015,2]
[391753795,1760779846161,-1238.44537652,0.00015,2]
[391753796,1760779846299,-6607.6895439,0.00015,2]
[391753797,1760779846310,-10392.90837615,0.00015,2]
[391754005,1760779868453,-2259.96041244,0.0001485,2]
[391754006,1760779868476,-2701.361488,0.00014925,2]
[391754007,1760779868501,-364.19201139,0.00014962,2]
[391754008,1760779868525,-500.0,0.00014973,2]
[391754009,1760779868548,-300.0,0.00014999,2]
[391754010,1760779868572,-93874.48608817,0.00015,2]
[391754012,1760779928621,1047.788116,7.945e-05,2]
[391754013,1760779941423,-155.94429842,0.00014899,2]
[391754014,1760779941448,-500.0,0.00014917,2]
[391754015,1760779941470,-186.14545386,0.00014936,2]
[391754016,1760779941492,-184.98342188,0.00014936,2]
[391754017,1760779941515,-2500.0,0.00014936,2]
[391754018,1760779941538,-500.0,0.00014961,2]
[391754019,1760779941743,-500.0,0.00014973,2]
[391754020,1760779941767,-501.7894212,0.00014973,2]
[391754021,1760779941793,-500.0,0.00014973,2]
[391754022,1760779941816,-500.0,0.00014973,2]
[391754023,1760779941839,-547.99297014,0.00014973,2]
[391754024,1760779941861,-500.0,0.00014973,2]
[391754025,1760779941883,-500.0,0.00014973,2]
[391754026,1760779941906,-176.02255438,0.00014973,2]
[391754027,1760779941928,-151.0,0.00014991,2]
[391754028,1760779941950,-151.0,0.00014991,2]
[391754029,1760779941971,-151.0,0.00014991,2]
[391754030,1760779941993,-151.0,0.00014991,2]
[391754031,1760779942017,-151.0,0.00014991,2]
[391754032,1760779942040,-151.0,0.00014991,2]
[391754033,1760779942063,-151.0,0.00014991,2]
[391754034,1760779942086,-151.0,0.00014991,2]
[391754035,1760779942108,-151.0,0.00014991,2]
[391754036,1760779942130,-151.0,0.00014991,2]
[391754037,1760779942153,-151.0,0.00014991,2]
[391754038,1760779942175,-151.0,0.00014991,2]
[391754039,1760779942198,-151.0,0.00014991,2]
[391754040,1760779942219,-151.0,0.00014991,2]
[391754041,1760779942243,-133.12188012,0.00014991,2]
[391754042,1760779943502,-17.87811988,0.00014991,2]
[391754043,1760779943525,-151.0,0.00014991,2]
[391754044,1760779943548,-151.0,0.00014991,2]
[391754045,1760779943572,-151.0,0.00014991,2]
[391754046,1760779943596,-151.0,0.00014991,2]
[391754047,1760779943624,-151.0,0.00014991,2]
[391754048,1760779943646,-300.0,0.00014998,2]
[391754049,1760779943669,-447.62045917,0.00014999,2]
[391754050,1760779943691,-314.7698014,0.00014999,2]
[391754051,1760779943715,-300.05160661,0.00014999,2]
[391754052,1760779943738,-503.53652257,0.00014999,2]
[391754053,1760779943761,-500.0,0.00014999,2]
[391754054,1760779943783,-521.99604028,0.00014999,2]
[391754055,1760779943811,-500.0,0.00014999,2]
[391754056,1760779943836,-500.0,0.00014999,2]
[391754057,1760779943859,-500.0,0.00014999,2]
[391754058,1760779943884,-500.0,0.00014999,2]
[391754059,1760779943908,-500.0,0.00014999,2]
[391754060,1760779943931,-500.0,0.00014999,2]
[391754061,1760779943954,-500.0,0.00014999,2]
[391754062,1760779943979,-500.0,0.00014999,2]
[391754063,1760779944003,-500.0,0.00014999,2]
[391754064,1760779944028,-425.29565345,0.00014999,2]
[391754065,1760779944054,-500.0,0.00014999,2]
[391754066,1760779944080,-500.0,0.00014999,2]
[391754067,1760779944105,-413.85179664,0.00014999,2]
[391754068,1760779945426,-86.14820336,0.00014999,2]
[391754069,1760779945450,-500.0,0.00014999,2]
[391754070,1760779945474,-500.0,0.00014999,2]
[391754071,1760779945497,-500.0,0.00014999,2]
[391754072,1760779945521,-500.0,0.00014999,2]
[391754073,1760779945545,-500.0,0.00014999,2]
[391754074,1760779945569,-500.0,0.00014999,2]
[391754075,1760779945593,-500.0,0.00014999,2]
[391754076,1760779945616,-500.0,0.00014999,2]
[391754077,1760779945639,-500.0,0.00014999,2]
[391754078,1760779945661,-500.0,0.00014999,2]
[391754079,1760779945684,-500.0,0.00014999,2]
[391754080,1760779945709,-500.0,0.00014999,2]
[391754081,1760779945732,-500.0,0.00014999,2]
[391754082,1760779945756,-500.0,0.00014999,2]
[391754083,1760779945780,-500.0,0.00014999,2]
[391754084,1760779945804,-350.0,0.00014999,2]
[391754085,1760779945829,-2063.85179664,0.00015,2]
[391754086,1760779947335,-10000.0,0.00015,2]
[391754087,1760779949113,-10000.0,0.00015,2]
[391754091,1760779963667,-10000.0,0.00015,2]
[391754092,1760779964914,-10000.0,0.00015,2]
[391754093,1760779966192,-10000.0,0.00015,2]
[391754094,1760779967200,-10000.0,0.00015,2]
[391754095,1760779968216,-4068.06816078,0.00015,2]
[391754096,1760779968240,-5931.93183922,0.00015,2]
[391754098,1760779985960,-150.0,0.00014999,2]
[391754099,1760779985983,-9850.0,0.00015,2]
[391754100,1760779995669,-10000.0,0.00015,2]
[391754101,1760779996853,-10000.0,0.00015,2]
[391754102,1760779997928,-10000.0,0.00015,2]
[391754103,1760779998899,-10000.0,0.00015,2]
[391754104,1760779999969,-10000.0,0.00015,2]
[391754105,1760780000993,-6160.17163497,0.00015,2]
[391754106,1760780001017,-3839.82836503,0.00015,2]
[391754107,1760780007890,-10000.0,0.00015,2]
[391754108,1760780009120,-10000.0,0.00015,2]
[391754109,1760780025951,305.63,0.00032632,30]
[391754110,1760780042162,-23584.0,0.00015,2]
[391754114,1760780142511,645.44238769,0.00032632,120]
[391754115,1760780226203,-1228.406099,0.00014824,2]
[391754116,1760780226227,-151.12578793,0.00014899,2]
[391754117,1760780226249,-200.0,0.00014991,2]
[391754118,1760780226272,-200.0,0.00014991,2]
[391754119,1760780226297,-1200.0,0.00014999,2]
[391754120,1760780226320,-20.46811307,0.00014999,2]
[391754150,1760781032157,-874.7893881,0.00014678,2]
[391754151,1760781032167,-280.0,0.00014989,2]
[391754152,1760781032176,-1200.0,0.00014989,2]
[391754153,1760781032186,-431.24111616,0.00014989,2]
[391754154,1760781032195,-195.0,0.0001499,2]
[391754155,1760781032204,-2500.0,0.0001499,2]
[391754156,1760781032213,-1200.0,0.0001499,2]
[391754157,1760781032222,-151.0,0.00014991,2]
[391754158,1760781032231,-151.0,0.00014991,2]
[391754159,1760781032240,-151.0,0.00014991,2]
[391754160,1760781032254,-151.0,0.00014991,2]
[391754161,1760781032264,-151.0,0.00014991,2]
[391754162,1760781032274,-151.0,0.00014991,2]
[391754163,1760781032287,-151.0,0.00014991,2]
[391754164,1760781032296,-151.0,0.00014991,2]
[391754165,1760781032307,-151.0,0.00014991,2]
[391754166,1760781032318,-151.0,0.00014991,2]
[391754167,1760781032328,-242.83335598,0.00014991,2]
[391754168,1760781032337,-200.0,0.00014991,2]
[391754169,1760781032347,-2500.0,0.00014994,2]
[391754170,1760781032356,-150.0,0.00014999,2]
[391754171,1760781032367,-29322.8882341,0.00015,2]
[391754172,1760781032377,-1142.6778079,0.00015,2]
[391754173,1760781032386,-3697.36859,0.00015,2]
[391754174,1760781032395,-6240.73058449,0.000154,2]
[391754175,1760781032405,-769.74,0.0001549,2]
[391754176,1760781032414,-500.0,0.0001575,2]
[391754177,1760781032424,-500.99980871,0.0001575,2]
[391754178,1760781032433,-503.33932183,0.0001575,2]
[391754179,1760781032443,-500.0,0.0001575,2]
[391754180,1760781032452,-500.7141723,0.0001575,2]
[391754181,1760781032461,-507.12841592,0.0001575,2]
[391754182,1760781032471,-500.0,0.00015993,2]
[391754184,1760781032480,-300.0,0.00015993,2]
[391754186,1760781032490,-2500.0,0.00015993,2]
[391754188,1760781032499,-169.22109161,0.00015993,2]
[391754190,1760781032508,-255.0,0.00016124,2]
[391754192,1760781032517,-769.74,0.00016227,2]
[391754194,1760781032527,-250.0,0.00016488,2]
[391754196,1760781032536,-300.0,0.00016488,2]
[391754198,1760781032545,-195.0,0.00016488,2]
[391754200,1760781032554,-2500.0,0.00016488,2]
[391754202,1760781032564,-500.0,0.00016488,2]
[391754204,1760781032573,-259.51677693,0.00016488,2]
[391754206,1760781032582,-150.0,0.00016488,2]
[391754208,1760781032592,-975.0,0.00016488,2]
[391754210,1760781032601,-1002.7672,0.00016498,2]
[391754212,1760781032610,-1142.6778079,0.00016787,2]
[391754214,1760781032620,-769.74,0.00016965,2]
[391754216,1760781032629,-250.0,0.00017,2]
[391754218,1760781032638,-3697.36859,0.00017,2]
[391754220,1760781032647,-769.74,0.00017702,2]
[391754222,1760781032657,-4663.71273327,0.00018,2]
[391754224,1760781032667,-170.28,0.00018029,2]
[391754226,1760781032675,-3449.87,0.00018394,2]
[391754228,1760781032684,-769.74,0.0001844,2]
[391754230,1760781032693,-1142.6778079,0.00018575,2]
[391754233,1760781032703,-5800.0,0.00018678,2]
[391754235,1760781032711,-7858.8,0.00018679,2]
[391754238,1760781032721,-1600.0,0.00018682,2]
[391754240,1760781032730,-666.6,0.0001893,2]
[391754242,1760781032739,-300.0,0.00019,2]
[391754244,1760781032748,-3697.3686,0.00019,2]
[391754246,1760781032757,-769.74,0.00019177,2]
[391754248,1760781032766,-151.0,0.00019178,2]
[391754250,1760781032776,-156.58700001,0.00019726,2]
[391754252,1760781032785,-198.47,0.00019832,2]
[391754254,1760781032794,-2751.0,0.00019891,2]
[391754256,1760781032803,-769.74,0.00019915,2]
[391754258,1760781032812,-159.31,0.00019988,2]
[391754260,1760781032824,-11302.27440187,0.00019995,2]
[391754262,1760781032833,-1142.6778079,0.00020362,2]
[391754264,1760781032842,-769.74,0.00020653,2]
[391754266,1760781032851,-500.0,0.00020973,2]
[391754268,1760781032860,-644.31273449,0.00020973,2]
[391754269,1760781032869,-500.0,0.00020973,2]
[391754270,1760781032877,-159.983392,0.00020973,2]
[391754271,1760781032886,-500.0,0.00020973,2]
[391754272,1760781032895,-500.0,0.00020973,2]
[391754273,1760781032904,-42124.55353956,0.00021,2]
[391754274,1760781032915,-11511.29158164,0.00021,2]
[391754275,1760781032926,-387.4358884,0.00021,2]
[391754276,1760781032941,-14.64330439,0.00021,2]
[391754277,1760781032949,-3697.36859,0.00021,2]
[391754278,1760781032959,-460.58810569,0.00021017,2]
[391754279,1760781032969,-1139.41189431,0.00021017,2]
[391754280,1760781032978,-893.75196034,0.00021048,2]
[391754281,1760781032992,-20343.50803966,0.00021048,2]
[391754282,1760781033001,-769.74,0.0002139,2]
[391754283,1760781033010,-200.0,0.000214,2]
[391754284,1760781033019,-1000.0,0.00021521,2]
[391754285,1760781033028,-1000.0,0.00021521,2]
[391754286,1760781033037,-1000.0,0.00021521,2]
[391754287,1760781033046,-1000.0,0.00021521,2]
[391754288,1760781033056,-1929.03526934,0.000218,2]
[391754293,1760781038112,-161.41064943,0.00020998,2]
[391754294,1760781038122,-500.0,0.00020998,2]
[391754295,1760781038131,-60.76987936,0.00020998,2]
[391754296,1760781038169,-522.10555551,0.00020998,2]
[391754297,1760781038179,-500.0,0.00020998,2]
[391754298,1760781038189,-500.0,0.00020998,2]
[391754299,1760781038198,-500.0,0.00020998,2]
[391754300,1760781038208,-500.0,0.00020998,2]
[391754301,1760781038218,-500.0,0.00020998,2]
[391754302,1760781038227,-500.0,0.00020998,2]
[391754303,1760781038240,-500.0,0.00020998,2]
[391754304,1760781038253,-500.0,0.00020998,2]
[391754305,1760781038262,-500.0,0.00020998,2]
[391754306,1760781038272,-500.0,0.00020998,2]
[391754307,1760781038281,-500.0,0.00020998,2]
[391754308,1760781038291,-500.0,0.00020998,2]
[391754309,1760781038301,-500.0,0.00020998,2]
[391754310,1760781038310,-500.0,0.00020998,2]
[391754311,1760781038320,-500.0,0.00020998,2]
[391754312,1760781038330,-500.0,0.00020998,2]
[391754313,1760781038339,-308.94597246,0.00020998,2]
[391754314,1760781038356,-191.05402754,0.00020998,2]
[391754315,1760781038365,-500.0,0.00020998,2]
[391754316,1760781038374,-500.0,0.00020998,2]
[391754317,1760781038383,-17.70560492,0.00020998,2]
[391754319,1760781038394,-482.29439508,0.00020998,2]
[391754321,1760781038403,-500.0,0.00020998,2]
[391754322,1760781038412,-500.0,0.00020998,2]
[391754323,1760781038422,-500.0,0.00020998,2]
[391754324,1760781038431,-500.0,0.00020998,2]
[391754325,1760781038441,-2591.14296861,0.000218,2]
[391754326,1760781038450,-600.0,0.00021918,2]
[391754328,1760781038460,-160.0,0.00022,2]
[391754329,1760781038470,-160.0,0.00022,2]
[391754330,1760781038479,-160.0,0.00022,3]
[391754331,1760781038489,-4520.17823795,0.00022,2]
[391754332,1760781038499,-1648.61586404,0.00022068,2]
[391754333,1760781038508,-500.93941618,0.00022068,2]
[391754334,1760781038518,-769.74,0.00022128,2]
[391754335,1760781038527,-4520.17823795,0.000222,2]
[391754336,1760781038536,-1000.0,0.00022291,2]
[391754337,1760781038546,-600.0,0.00022466,2]
[391754338,1760781038556,-159.31,0.00022487,2]
[391754339,1760781038566,-4520.17823795,0.000225,2]
[391754340,1760781038575,-200.0,0.00022563,2]
[391754341,1760781038584,-4520.17823795,0.000227,2]
[391754342,1760781038594,-752.94,0.00022855,2]
[391754343,1760781038603,-769.74,0.00022865,2]
[391754344,1760781038612,-4520.17823795,0.000229,2]
[391754345,1760781038622,-3697.3686,0.00023,2]
[391754346,1760781038632,-600.0,0.00023014,2]
[391754347,1760781038641,-4520.17823795,0.000231,2]
[391754348,1760781038650,-1600.0,0.00023352,2]
[391754349,1760781038660,-4520.17823795,0.000234,2]
[391754350,1760781038669,-600.0,0.00023562,2]
[391754351,1760781038679,-4520.17823795,0.000236,2]
[391754352,1760781038689,-769.74,0.00023603,2]
[391754353,1760781038698,-4520.17823795,0.000238,2]
[391754354,1760781038707,-305.34,0.00023836,2]
[391754355,1760781038717,-381.9,0.0002406,2]
[391754356,1760781038726,-600.0,0.0002411,2]
[391754357,1760781038736,-769.74,0.00024341,2]
[391754358,1760781038745,-500.0,0.00024473,2]
[391754359,1760781038755,-500.0,0.00024473,2]
[391754360,1760781038764,-500.0,0.00024473,2]
[391754361,1760781038773,-388.27,0.00024498,2]
[391754362,1760781038782,-600.0,0.00024658,2]
[391754363,1760781038792,-388.27,0.00024772,2]
[391754364,1760781038801,-381.9,0.00024962,2]
[391754365,1760781038810,-159.31,0.00024985,2]
[391754366,1760781038818,-3697.36859,0.00025,2]
[391754367,1760781038828,-1001.45384956,0.00025021,2]
[391754368,1760781038838,-388.27,0.00025046,2]
[391754369,1760781038847,-1000.0,0.00025077,2]
[391754370,1760781038857,-769.74,0.00025078,2]
[391754371,1760781038866,-600.0,0.00025206,2]
[391754372,1760781038876,-388.27,0.0002532,2]
[391754373,1760781038886,-388.30992905,0.00025594,2]
[391754374,1760781038895,-1600.0,0.00025687,120]
[391754375,1760781038905,-600.0,0.00025754,2]
[391754376,1760781038914,-4844.29,0.00025786,2]
[391754377,1760781038923,-769.74,0.00025816,2]
[391754378,1760781038933,-381.9,0.00025865,2]
[391754379,1760781038944,-300.0,0.00025893,2]
[391754380,1760781038953,-600.0,0.00026302,2]
[391754381,1760781038963,-9964.46263745,0.00026332,2]
[391754382,1760781038973,-769.74,0.00026553,2]
[391754383,1760781038982,-160.48747268,0.0002675,14]
[391754384,1760781038992,-1008.637,0.0002675,14]
[391754385,1760781039015,-381.9,0.00026767,2]
[391754386,1760781039025,-1956.0,0.0002685,2]
[391754387,1760781039035,-600.0,0.0002685,2]
[391754388,1760781039046,-5215.22707608,0.00027242,2]
[391754389,1760781039055,-277.35679052,0.00027252,2]
[391754390,1760781039065,-1000.0,0.00027252,2]
[391754391,1760781039075,-1000.0,0.00027252,2]
[391754392,1760781039085,-1000.0,0.00027252,2]
[391754393,1760781039095,-1000.0,0.00027252,2]
[391754394,1760781039104,-250.0,0.00027252,2]